[Event "Asian Amateur-ch Open 2022"]
[Site "Muscat"]
[Date "2022.10.02"]
[Round "2.8"]
[White "Fooladi, Behrooz"]
[Black "Khayat, Emad"]
[Result "1-0"]
[ECO "E16"]
[WhiteElo "1928"]
[BlackElo "1597"]
[Annotator "TA"]
[PlyCount "107"]
[EventDate "2022.09.29"]
[EventType "swiss"]
[SourceTitle "playchess.com"]
[Source "ChessBase"]
[SourceQuality "1"]
[TimeControl "5400+30"]

{[%evp 15,107,9,30,12,33,34,37,31,72,73,69,66,71,72,91,66,163,59,62,44,51,64,84,43,82,75,105,91,107,109,89,77,81,97,129,133,220,220,208,91,91,93,93,91,98,91,116,-474,-510,-477,-333,-332,-332,-281,-107,-107,-107,-107,-107,-107,-107,-107,-107,-107,-8,-8,-8,-8,-8,-58,-58,-5399,-5398,-5287,-44,-44,-44,-44,-44,-44,29965,29963,29968,29971,29971,-8,-8,-8,29981,29982,29982,29983,29978,29961]} 1. d4 {[%emt 0:00:06]} Nf6 {[%emt 0:00:10]} 2. c4 {[%emt 0:00:12]} e6 {[%emt 0:00:12]} 3. g3 {[%emt 0:00:15]} Bb4+ {[%emt 0:00:16]} 4. Nd2 {[%emt 0:00:16]} d5 {[%emt 0:08:19]} 5. Bg2 {[%emt 0:00:25]} O-O {[%emt 0:00:41]} 6. Ngf3 {[%emt 0:00:16]} b6 {[%emt 0:03:13]} 7. O-O {[%emt 0:00:16]} Bb7 {[%emt 0:00:11]} 8. Ne5 {[%emt 0:04:50]} Nbd7 {[%emt 0:10:43] 8...a5 is more fashionable.} 9. Qa4 {[%emt 0:01:45] Nxd7 is the strong threat. E16: Queen's Indian: 4 g3 Bb7 5 Bg2 Bb4+.} Bxd2 {[%emt 0:10:36]} 10. Bxd2 {[%emt 0:00:13]} Nxe5 {[%emt 0:00:40]} 11. dxe5 {[%emt 0:00:08] White is slightly better.} Ne4 {[%emt 0:03:16]} 12. Be3 {[%emt 0:04:25]} Qe7 {[%emt 0:09:24]} 13. Rfd1 {[%emt 0:07:20]} Rfd8 {[%emt 0:16:21] [#]} 14. Rac1 $146 {[%emt 0:04:56]} ({Predecessor:} 14. Bxe4 dxe4 15. Rxd8+ Qxd8 16. Rd1 Qe8 17. Qxe8+ Rxe8 18. b4 Kf8 19. a4 Ke7 20. a5 {½-½ (40) Mica,M (2316)-Syrkiewicz,M (1975) Prague 2021}) 14... c6 {[%emt 0:07:26]} 15. b4 {[%emt 0:04:42] Hoping for f3.} f6 {[%emt 0:05:17]} (15... f5 $14) 16. exf6 {[%emt 0:05:17]} (16. Bxe4 $18 {And now exf6 would win.} dxe4 17. Rxd8+ Qxd8 18. exf6) 16... Nxf6 $14 {[%emt 0:01:25]} 17. cxd5 {[%emt 0:06:56]} exd5 {[%emt 0:00:47]} 18. Qb3 {[%emt 0:05:58]} Kh8 {[%emt 0:02:09]} 19. Qb2 {[%emt 0:02:38]} Re8 {[%emt 0:00:47]} 20. Bd4 {[%emt 0:00:44]} (20. a4 {is more complex.} Ng4 21. Bd4 Rac8 22. Bh3) 20... Qe6 {[%emt 0:02:57]} 21. a4 {[%emt 0:03:50][%cal Ba2a4,Ba4a5][%mdl 32]} Re7 {[%emt 0:00:31]} 22. Rc2 {[%emt 0:01:40]} Rf7 {[%emt 0:00:40]} 23. Rd3 {[%emt 0:01:41] White is more active.} Ne4 {[%emt 0:01:48]} 24. Rf3 {[%emt 0:00:30]} Kg8 {[%emt 0:04:05]} 25. a5 $1 {[%emt 0:04:51]} b5 {[%emt 0:01:34]} (25... Nd6 $16 {might work better.}) 26. Rxf7 $18 {[%emt 0:00:38]} Qxf7 {[%emt 0:00:24]} 27. h4 {[%emt 0:02:30]} ({Don't play} 27. a6 Bxa6 28. Rxc6 Bb7 $16) (27. Qc1 $18 {[%cal Oa5a6] and White stays clearly on top. Black must now prevent a6!} Qd7 28. a6 Bxa6 29. Rxc6) 27... a6 $16 {[%emt 0:00:16]} 28. Bxe4 {[%emt 0:00:44]} dxe4 {[%emt 0:00:06]} 29. Rc5 {[%emt 0:00:07][%cal Od4g7] Strongly threatening Bxg7!} h6 {[%emt 0:00:55]} 30. Re5 {[%emt 0:00:46]} Rd8 {[%emt 0:02:39]} 31. Rxe4 $2 {[%emt 0:01:16][%mdl 8192]} (31. Bc5 $16 {keeps the pressure on.} Re8 32. Qd4) 31... c5 $1 $19 {[%emt 0:01:02]} 32. Rg4 {[%emt 0:03:26]} Rxd4 {[%emt 0:00:57]} ({Don't go for} 32... cxd4 $2 33. Rxd4 Re8 34. Rd6 $19) 33. Rxd4 {[%emt 0:00:04]} cxd4 {[%emt 0:00:14]} 34. Qxd4 {[%emt 0:00:02]} Qd5 {[%emt 0:00:45] Against Qd6} (34... Qg6 $19 {has better winning chances. ( -> ...Qb1+)} 35. Qd3 Qxd3 36. exd3 Kf7) 35. Qxd5+ $17 {[%emt 0:00:03]} Bxd5 {[%emt 0:00:08][%mdl 4096] Endgame KB-KP} 36. f3 {[%emt 0:00:06]} Kf7 {[%emt 0:00:19]} 37. Kf2 {[%emt 0:00:07]} Ke6 {[%emt 0:01:22]} 38. e4 {[%emt 0:00:19]} Bc6 {[%emt 0:00:18]} 39. Ke3 {[%emt 0:00:03]} g5 {[%emt 0:02:55]} (39... Bd7 $17 40. Kd4 Kd6) 40. hxg5 $1 $11 {[%emt 0:00:58]} hxg5 {[%emt 0:00:06]} 41. Kd4 $1 {[%emt 0:00:43]} Kd6 {[%emt 0:01:18]} 42. f4 {[%emt 0:00:07]} ({White should play} 42. e5+ $1 $11 Kc7 43. f4) 42... Be8 $15 {[%emt 0:01:12]} 43. f5 $2 {[%emt 0:04:49][%mdl 8192] [#]} (43. Kc3 $15) 43... Bh5 $1 $19 {[%emt 0:02:31]} 44. e5+ {[%emt 0:00:19] [#]} Ke7 $2 {[%emt 0:01:02]} (44... Kc6 $1 $19 45. Ke4 Bg4) 45. Kc5 $15 {[%emt 0:01:43]} Bg4 {[%emt 0:00:07]} 46. f6+ {[%emt 0:00:13]} Ke6 {[%emt 0:00:55] Threatens to win with ...Be2.} 47. Kb6 {[%emt 0:00:09]} Bh5 $2 {[%emt 0:00:21][%mdl 8192]} (47... Be2 $15) 48. Kxa6 {[%emt 0:00:04]} Kxe5 {[%emt 0:00:04]} 49. Kxb5 {[%emt 0:00:21]} Kxf6 {[%emt 0:00:37] KB-K3P} 50. Kb6 $2 {[%emt 0:02:17]} (50. a6 {mates} Kf5 51. Kc6 Bf3+ 52. Kc7 Kg4 53. b5 Be2 54. a7 Bxb5 55. a8=Q) 50... Ke7 $1 $11 {[%emt 0:00:24]} 51. b5 {[%emt 0:00:31][%cal Bb4b5,Bb5b6,Bb6b7][%mdl 32] White threatens Kc7 and mate.} Kd7 {[%emt 0:00:26][%mdl 8192]} (51... Be2 $11) 52. Ka7 {[%emt 0:00:13] White mates.} Be2 {[%emt 0:01:07]} 53. b6 {[%emt 0:00:04]} Bf3 {[%emt 0:00:27]} 54. b7 {[%emt 0:00:14] Never resign too early!  Weighted Error Value: White=0.55/Black=0.55} 1-0

[Event "Asian Amateur-ch Open 2022"]
[Site "Muscat"]
[Date "2022.10.02"]
[Round "2.9"]
[White "Al Ghafri, Amer"]
[Black "Zahmati, Sobhan"]
[Result "0-1"]
[ECO "A36"]
[WhiteElo "1605"]
[BlackElo "1926"]
[Annotator "TA"]
[PlyCount "72"]
[EventDate "2022.09.29"]
[EventType "swiss"]
[SourceTitle "playchess.com"]
[Source "ChessBase"]
[SourceQuality "1"]
[TimeControl "5400+30"]

{[%evp 15,72,6,10,0,0,0,0,-27,-30,-37,-37,-54,-56,-62,-38,-60,-56,-63,0,-35,-19,-89,-82,-99,-89,-93,-18,-76,-87,-186,-202,-196,-200,-229,-223,-318,-306,-436,-440,-464,-454,-515,-513,-867,-865,-1408,-1408,-1258,-672,-691,-678,-654,-552,-1167,-1140,-1915,-1892,-1878,-1211]} 1. c4 {[%emt 0:00:04]} e6 {[%emt 0:00:30]} 2. g3 {[%emt 0:01:27]} c5 {[%emt 0:01:06]} 3. Bg2 {[%emt 0:00:30]} Nc6 {[%emt 0:00:46]} 4. Nc3 {[%emt 0:00:14]} Nf6 {[%emt 0:00:33]} 5. e4 {[%emt 0:00:11]} Be7 {[%emt 0:00:42]} 6. Nge2 {[%emt 0:00:21]} O-O {[%emt 0:02:47]} 7. O-O {[%emt 0:00:09]} d6 {[%emt 0:08:35]} 8. d3 {[%emt 0:00:19]} a6 {[%emt 0:01:32]} 9. Nf4 {[%emt 0:01:00] A36: Symmetrical English vs ...g6: 4 Bg2 Bg7.} Rb8 {[%emt 0:02:44]} 10. a4 {[%emt 0:01:08] [#] Against b5} Ne8 $146 {[%emt 0:02:39]} ({Predecessor:} 10... b6 11. Nfe2 Bb7 12. f4 Ne8 13. f5 Bf6 14. g4 Nd4 15. Be3 Bg5 16. Bf2 Nxe2+ 17. Qxe2 {0-1 (36) Drtina,M (2247)-Gasa,A (2257) Slovakia 2011}) 11. Be3 {[%emt 0:01:03] The position is equal.} Nc7 {[%emt 0:01:39]} 12. Qd2 {[%emt 0:01:48]} b5 {[%emt 0:03:16]} 13. axb5 {[%emt 0:00:26]} axb5 {[%emt 0:00:06]} 14. b3 {[%emt 0:02:13]} Bf6 {[%emt 0:14:18] Hoping for ...b4.} 15. Rab1 {[%emt 0:03:19]} Bd7 {[%emt 0:09:59]} 16. Nfe2 {[%emt 0:02:19]} Nd4 {[%emt 0:20:20]} ({Better is} 16... b4 $15 17. Nd1 e5) 17. f4 {[%emt 0:02:33]} Na6 {[%emt 0:06:24]} (17... b4 $5 {[%cal Rb4c3]} 18. Nd1 e5 $15) 18. Bxd4 {[%emt 0:06:23]} (18. e5 $11 dxe5 19. Ne4) 18... cxd4 $17 {[%emt 0:00:26]} 19. Nd1 {[%emt 0:01:31]} bxc4 {[%emt 0:01:38]} 20. dxc4 {[%emt 0:00:13]} Ba4 {[%emt 0:09:33]} (20... Qc7 $17) 21. b4 {[%emt 0:02:31]} (21. Nc1 $1 $11 {remains equal.} Bd7 22. Nd3) 21... Qb6 {[%emt 0:07:56] Black continues to play with concentration.} 22. Kh1 {[%emt 0:01:45]} (22. Nf2 $17) 22... Nxb4 $19 {[%emt 0:01:13]} 23. Nf2 {[%emt 0:00:53] [#]} Qc5 $1 {[%emt 0:01:03]} 24. Rbc1 {[%emt 0:03:58]} e5 {[%emt 0:00:55]} 25. f5 {[%emt 0:01:27]} (25. Ng1 {was necessary.}) 25... Be7 {[%emt 0:00:31] This bishop pair is nice.} 26. f6 {[%emt 0:01:12]} (26. Nd1 $142) 26... Bxf6 {[%emt 0:00:16] Black is clearly winning.} 27. Ng4 {[%emt 0:00:29]} Be7 {[%emt 0:00:10]} 28. Bh3 {[%emt 0:07:12]} Bc6 {[%emt 0:01:16] [#] ...f5 is the strong threat.} 29. Nf6+ {[%emt 0:03:09]} (29. Bg2 $142) 29... Bxf6 {[%emt 0:00:09]} 30. Rxf6 {[%emt 0:01:07]} Bxe4+ {[%emt 0:00:02]} 31. Bg2 {[%emt 0:01:23]} Qc6 {[%emt 0:01:24]} 32. Rf2 {[%emt 0:03:18]} Bxg2+ {[%emt 0:00:07]} 33. Rxg2 {[%emt 0:00:03]} Qe4 {[%emt 0:00:11] Strongly threatening ...Nd3.} 34. h3 {[%emt 0:01:21]} Nd3 {[%emt 0:00:30] Threatens to win with ...Rb2.} 35. Rc2 {[%emt 0:01:26] Prevents Rb2.} Rb1+ {[%emt 0:00:22]} 36. Kh2 {[%emt 0:00:06]} Ne1 {[%emt 0:00:06] Weighted Error Value: White=1.02/Black=0.25 (precise)} 0-1

[Event "Asian Amateur-ch Open 2022"]
[Site "Muscat"]
[Date "2022.10.02"]
[Round "2.10"]
[White "Mahmoody, M. Sadegh"]
[Black "Reyes, Danilo G."]
[Result "1-0"]
[ECO "B06"]
[WhiteElo "1914"]
[BlackElo "1584"]
[Annotator "TA"]
[PlyCount "103"]
[EventDate "2022.09.29"]
[EventType "swiss"]
[SourceTitle "playchess.com"]
[Source "ChessBase"]
[SourceQuality "1"]
[TimeControl "5400+30"]

{[%evp 9,103,40,46,44,60,52,79,75,97,91,104,100,105,99,108,86,92,52,102,102,99,91,110,109,114,106,109,104,103,91,136,129,208,208,213,209,220,219,221,210,275,253,253,253,253,227,327,264,226,244,233,245,211,135,134,109,109,118,345,347,437,410,425,422,386,85,117,137,138,78,90,78,276,86,96,90,284,262,652,594,579,584,731,704,714,708,971,958,973,932,29978,29978,29984,29985,29985,29982]} 1. d4 {[%emt 0:00:04]} g6 {[%emt 0:00:13]} 2. Nf3 {[%emt 0:00:06]} Bg7 {[%emt 0:00:31]} 3. e4 {[%emt 0:00:06]} d6 {[%emt 0:00:11]} 4. h3 {[%emt 0:00:06]} c6 {[%emt 0:00:14]} 5. c4 {[%emt 0:00:51]} Nd7 {[%emt 0:02:39]} 6. Nc3 {[%emt 0:00:56] B06: Modern Defence.} e5 {[%emt 0:04:02]} 7. d5 {[%emt 0:03:54]} (7. Bg5 {keeps more tension.} Ngf6 8. d5 O-O 9. Be2) 7... c5 {[%emt 0:02:56]} 8. Bd3 {[%emt 0:02:44] White is better.} Ngf6 {[%emt 0:02:14]} 9. Be3 {[%emt 0:03:54]} a6 {[%emt 0:04:15] [#]} 10. a3 $146 {[%emt 0:01:25]} ({Predecessor:} 10. Qd2 h6 11. O-O g5 12. Nh2 Nf8 13. Be2 Ng6 14. a3 Nf4 15. Bxf4 exf4 {0-1 (66) Schmidt,M (1869)-Fronczek,H (2119) Templin 2004}) 10... h6 {[%emt 0:04:22]} 11. b4 {[%emt 0:04:35]} b6 {[%emt 0:01:37]} 12. Nd2 {[%emt 0:05:16]} O-O {[%emt 0:00:54]} 13. Nb3 {[%emt 0:00:05]} Rb8 {[%emt 0:10:41]} (13... Nh5 $14) 14. Qd2 $16 {[%emt 0:02:41]} Kh7 {[%emt 0:00:04]} 15. g4 {[%emt 0:00:28] Inhibits Nh5.} Rb7 {[%emt 0:07:48]} 16. f3 {[%emt 0:01:32]} Re8 {[%emt 0:06:21]} 17. Ne2 {[%emt 0:05:00]} Nf8 {[%emt 0:24:08]} 18. Ng3 {[%emt 0:02:24]} Bd7 {[%emt 0:05:53]} 19. Be2 {[%emt 0:03:09]} (19. Kf1 {is interesting.} h5 20. Kg2 Kg8 21. g5) 19... Ng8 {[%emt 0:01:21]} 20. h4 $1 {[%emt 0:00:47][%cal Bh3h4,Bh4h5][%mdl 32]} ({Much weaker is} 20. bxc5 $6 bxc5 21. Na5 Rb6 $11) 20... f6 {[%emt 0:04:31]} (20... Nf6 $16 21. g5 Nh5) 21. h5 {[%emt 0:01:19]} g5 {[%emt 0:00:37]} 22. Kf2 {[%emt 0:00:06]} Ne7 {[%emt 0:01:57]} 23. Rhb1 {[%emt 0:02:14]} Qb8 {[%emt 0:02:49]} 24. Bd3 {[%emt 0:00:54]} Kg8 {[%emt 0:00:29]} 25. bxc5 {[%emt 0:00:14]} dxc5 {[%emt 0:02:01]} 26. a4 {[%emt 0:01:58] Black must now prevent a5.} a5 {[%emt 0:01:12]} 27. Kg2 {[%emt 0:09:20]} Nc8 {[%emt 0:02:15]} (27... Qc7 $142 28. Nc1 Nc8) 28. Bxc5 {[%emt 0:04:03]} bxc5 {[%emt 0:00:21]} 29. Nxc5 {[%emt 0:00:01][%mdl 64] Discovered Attack} Rxb1 {[%emt 0:00:42]} 30. Rxb1 {[%emt 0:00:01]} Qa7 {[%emt 0:00:40]} 31. Qf2 {[%emt 0:00:02]} Nd6 {[%emt 0:01:38] Inhibits Rb7.} 32. Nb3 {[%emt 0:04:45]} Qxf2+ {[%emt 0:00:43]} 33. Kxf2 {[%emt 0:00:02]} Nb7 {[%emt 0:01:45]} (33... Rb8 $16) 34. c5 $18 {[%emt 0:02:43][%cal Bc4c5,Bc5c6,Bc6b7][%mdl 32]} Bxa4 {[%emt 0:00:16]} 35. c6 {[%emt 0:00:00]} Bxb3 {[%emt 0:00:24]} 36. cxb7 {[%emt 0:00:02]} ({Less strong is} 36. Rxb3 Nc5 $18) 36... a4 {[%emt 0:00:17]} 37. Nf5 $2 {[%emt 0:00:23]} (37. Rc1 $1 $18 {[%cal Rc1c8] and the rest is easy. Rc8 is the strong threat.} Rb8 38. Rc7) 37... Rb8 $16 {[%emt 0:01:06] [#]} 38. Ne7+ $1 {[%emt 0:02:23][%mdl 1024] White has strong compensation.} Kh7 {[%emt 0:00:48]} (38... Kf7 $2 39. Nc6 Re8 40. b8=Q Rxb8 41. Nxb8 $18) 39. Ba6 {[%emt 0:00:06] Hoping for Nc6. White is much more active.} Nd7 {[%emt 0:00:25] And now ...Nc5 would win.} 40. Nc6 {[%emt 0:03:48]} Rf8 {[%emt 0:01:14]} (40... Bf8 $16) 41. Rc1 $2 {[%emt 0:04:33]} (41. Bb5 $18 {is more deadly.}) 41... a3 {[%emt 0:01:17]} 42. Na5 $36 {[%emt 0:00:15][%mdl 2048] Keeping Black busy.} Nb8 $2 {[%emt 0:00:38] [#]} (42... Ba4 $16 {was worth a try.}) 43. Bb5 $1 $18 {[%emt 0:00:32]} Rf7 $2 {[%emt 0:01:13]} (43... f5) 44. Bc6 {[%emt 0:00:42]} ({And not} 44. Nxb3 Rxb7 45. Bc4 Bf8 $11) 44... Bf8 {[%emt 0:01:16]} 45. Nxb3 {[%emt 0:00:11]} Bd6 {[%emt 0:01:04]} 46. Na5 {[%emt 0:00:21]} Bb4 {[%emt 0:00:08]} 47. Nc4 {[%emt 0:00:29]} Rc7 {[%emt 0:00:14]} 48. Ra1 {[%emt 0:00:14]} Bc5+ {[%emt 0:00:40]} 49. Ke2 {[%emt 0:00:06]} Ba7 {[%emt 0:00:45]} 50. Rxa3 {[%emt 0:00:08] White mates.} Nxc6 {[%emt 0:00:53]} 51. dxc6 {[%emt 0:00:16]} Bb8 {[%emt 0:00:46]} 52. Ra8 {[%emt 0:00:21] Weighted Error Value: White=0.25 (precise) /Black=0.59} 1-0

[Event "Asian Amateur-ch Open 2022"]
[Site "Muscat"]
[Date "2022.10.02"]
[Round "2.11"]
[White "Al Busafi, Khalid"]
[Black "Shahali, Milad"]
[Result "0-1"]
[ECO "E24"]
[WhiteElo "1596"]
[BlackElo "1910"]
[Annotator "TA"]
[PlyCount "76"]
[EventDate "2022.09.29"]
[EventType "swiss"]
[SourceTitle "playchess.com"]
[Source "ChessBase"]
[SourceQuality "1"]
[TimeControl "5400+30"]

{[%evp 10,76,-7,-13,10,-21,33,-61,-61,-73,-32,-71,-52,-55,-41,-50,-50,-41,-29,-39,-38,-44,-40,-60,-60,-61,-36,-61,-64,-56,-52,-63,-12,-33,0,-58,-15,-27,-29,-43,-18,-60,-60,-65,-56,-56,-56,-56,0,-57,-36,-91,-90,-75,-82,-154,-86,-775,-775,-29954,-29953,-6964,-7141,-29967,-29967,-5928,-5908,-29983,-2052]} 1. d4 {[%emt 0:00:03]} Nf6 {[%emt 0:00:05]} 2. c4 {[%emt 0:00:23]} e6 {[%emt 0:00:04]} 3. Nc3 {[%emt 0:00:38]} Bb4 {[%emt 0:00:08]} 4. a3 {[%emt 0:01:16]} Bxc3+ {[%emt 0:00:05]} 5. bxc3 {[%emt 0:00:03]} b6 {[%emt 0:00:24]} 6. f3 {[%emt 0:00:43]} Nc6 {[%emt 0:00:23] E24: Nimzo-Indian: Sämisch: Unusual Black 5th moves and 5...c5 sidelines.} 7. e4 {[%emt 0:01:14]} e5 {[%emt 0:00:11] 7...Na5 is setting a new trend.} (7... d6 $1 $11) 8. d5 {[%emt 0:03:19]} (8. Be3 $14) 8... Na5 $15 {[%emt 0:00:10] Black is slightly better.} 9. Bd3 {[%emt 0:01:48] [#]} Qe7 $146 {[%emt 0:09:38]} ({Predecessor:} 9... Ba6 10. Qe2 Nb3 11. Rb1 Nxc1 12. Rxc1 Qe7 13. Ra1 c6 14. Nh3 Qc5 15. Kd2 Rc8 {0-1 (39) Ke,I (2058)-Gareyev,T (2617) Chess.com INT 2017}) 10. Be3 {[%emt 0:06:45][%cal Oc4c5]} Ba6 {[%emt 0:06:17]} 11. Qe2 {[%emt 0:06:39]} d6 {[%emt 0:10:13]} 12. Nh3 {[%emt 0:07:36]} O-O {[%emt 0:08:26]} 13. O-O {[%emt 0:00:22]} Qd7 {[%emt 0:02:58]} 14. a4 {[%emt 0:09:57]} c6 {[%emt 0:03:41]} 15. Nf2 {[%emt 0:07:38]} Rac8 {[%emt 0:05:06]} 16. Ra3 {[%emt 0:06:20]} cxd5 {[%emt 0:04:18]} 17. cxd5 {[%emt 0:00:26]} Bxd3 {[%emt 0:06:31]} 18. Qxd3 {[%emt 0:02:28]} Rc4 {[%emt 0:05:57]} 19. Rfa1 {[%emt 0:10:03]} Rfc8 {[%emt 0:01:05]} 20. Nd1 {[%emt 0:01:55]} Qb7 {[%emt 0:04:08] Black is more active.} (20... Nh5 $15) 21. h3 {[%emt 0:06:27]} Nd7 {[%emt 0:01:12] Pair of Knights!} 22. Kh1 {[%emt 0:05:27]} (22. Bf2 $11) 22... g6 {[%emt 0:02:30]} 23. Nb2 {[%emt 0:06:56]} R4c7 $1 {[%emt 0:00:13]} 24. Rc1 {[%emt 0:00:44]} Nc5 {[%emt 0:01:42]} 25. Bxc5 {[%emt 0:00:46]} Rxc5 {[%emt 0:00:17]} 26. c4 {[%emt 0:00:59]} Qd7 {[%emt 0:01:12]} 27. Rac3 {[%emt 0:02:40]} Qc7 {[%emt 0:06:37]} 28. Qe2 {[%emt 0:02:03]} Qd7 {[%emt 0:06:59]} 29. Qd3 $1 {[%emt 0:00:46]} a6 {[%emt 0:00:45]} 30. Qe2 {[%emt 0:00:21] [#]} (30. Ra1 $15) 30... b5 $1 $17 {[%emt 0:05:47]} 31. axb5 {[%emt 0:01:30]} axb5 {[%emt 0:00:04]} 32. Kg1 {[%emt 0:01:54]} (32. Qe1 $142) 32... bxc4 {[%emt 0:01:24]} ({Black should play} 32... b4 33. Re3 Qc7) 33. Rxc4 {[%emt 0:05:20][%mdl 8192] Now White is beyond hope.} ({Don't blunder} 33. Nxc4 $2 Qb5 34. Kh2 Nxc4 $19) (33. Kh2 $17) 33... Nxc4 $19 {[%emt 0:00:11]} 34. Rxc4 {[%emt 0:00:22]} Rxc4 {[%emt 0:00:14]} 35. Nxc4 $17 {[%emt 0:00:04] KQR-KQN} Qb5 {[%emt 0:00:17]} 36. Qb2 {[%emt 0:01:45]} Qxc4 {[%emt 0:00:20]} 37. Kh2 {[%emt 0:00:02]} Qc1 {[%emt 0:00:13]} 38. Qe2 {[%emt 0:01:48]} Qc7 {[%emt 0:09:45] Weighted Error Value: White=0.92/Black=0.18 (very precise)} (38... Rc2 $142 39. Qd3 Qf4+ 40. Kg1 Rc1+ 41. Kf2 Qh4+ 42. g3 Qxh3 43. Ke3 Qxg3 44. Qd2 Qg1+ 45. Ke2 Qf1+ 46. Ke3 Ra1 47. Qc2 Qe1+ 48. Kd3 Ra3+ 49. Kc4 Qa5 50. Qb3 Qc5+ 51. Kd3 Rxb3+ 52. Ke2 Qc2+ 53. Kf1 Rb1#) 0-1

[Event "Asian Amateur-ch Open 2022"]
[Site "Muscat"]
[Date "2022.10.02"]
[Round "2.12"]
[White "Dadabaev, Zhanybek"]
[Black "Al Jahwari, Adnan Mohammed"]
[Result "1-0"]
[ECO "A96"]
[WhiteElo "1902"]
[BlackElo "1546"]
[Annotator "TA"]
[PlyCount "69"]
[EventDate "2022.09.29"]
[EventType "swiss"]
[SourceTitle "playchess.com"]
[Source "ChessBase"]
[SourceQuality "1"]
[TimeControl "5400+30"]

{[%evp 12,69,48,39,75,51,69,27,98,79,89,62,113,18,19,18,14,18,74,76,115,97,164,155,185,193,183,153,174,164,162,164,185,178,225,219,234,214,345,225,221,227,718,668,1245,1258,1219,1251,2030,1830,29983,29984,29984,29985,29982,29954,29953,12851,29986,29987]} 1. d4 {[%emt 0:01:27]} f5 {[%emt 0:00:33]} 2. c4 {[%emt 0:00:30]} Nf6 {[%emt 0:00:12]} 3. Nf3 {[%emt 0:00:24]} e6 {[%emt 0:00:21]} 4. Nc3 {[%emt 0:01:17]} Be7 {[%emt 0:00:27]} 5. g3 {[%emt 0:02:50]} O-O {[%emt 0:00:38]} 6. Bg2 {[%emt 0:00:03]} d6 {[%emt 0:01:22]} 7. O-O {[%emt 0:00:23]} h6 {[%emt 0:01:01] A96: Classical Dutch: Fluid Systems: Early deviations.} 8. b4 {[%emt 0:01:29]} Nbd7 {[%emt 0:05:58] [#]} 9. Qc2 $146 {[%emt 0:01:47]} ({Predecessor:} 9. Qb3 Nh5 10. e4 fxe4 11. Nxe4 e5 12. Bb2 exd4 13. c5+ Kh8 14. cxd6 cxd6 15. Nxd4 {1-0 (28) Neuillet,A-Griffon,O Cappelle la Grande 1995}) 9... Rb8 {[%emt 0:03:54]} (9... Nb6 $11) 10. Rd1 {[%emt 0:08:39]} Nb6 {[%emt 0:05:46]} 11. Qb3 {[%emt 0:05:29]} Ne4 {[%emt 0:05:56] [#]} (11... d5 $14) 12. c5 {[%emt 0:09:50]} (12. Nxe4 $1 $16 fxe4 13. Nd2) 12... Nxc3 $11 {[%emt 0:00:50]} 13. Qxc3 {[%emt 0:00:01]} Nd5 {[%emt 0:00:22]} 14. Qb3 {[%emt 0:00:41]} Nf6 {[%emt 0:01:26]} (14... Qe8 $11) 15. Bb2 $36 {[%emt 0:03:19][%mdl 2048] White has strong initiative. White is more active. White stays focused until the end.} g5 {[%emt 0:04:03]} 16. a4 {[%emt 0:04:56]} Ne4 {[%emt 0:01:16]} (16... Kh7 $16) 17. d5 $18 {[%emt 0:08:53]} e5 {[%emt 0:00:41] [#]} 18. Nxe5 {[%emt 0:04:20][%mdl 512]} Bf6 {[%emt 0:16:46]} 19. Nd3 {[%emt 0:04:23]} Bd7 {[%emt 0:02:19]} 20. f3 {[%emt 0:09:35][%cal Bf2f3,Bf3e4,Be4e5,Be5d6,Bd6c7][%mdl 32]} Bxb2 {[%emt 0:00:35]} 21. Qxb2 {[%emt 0:00:07]} ({Resist} 21. Nxb2 Nf6 $16) 21... Nf6 {[%emt 0:00:32]} 22. Qd4 {[%emt 0:02:04]} Qe8 {[%emt 0:05:10]} (22... Qe7 $142 23. e4 fxe4) 23. e4 {[%emt 0:01:30]} fxe4 {[%emt 0:04:39]} 24. fxe4 {[%emt 0:00:15] And now e5 would win.} Bxa4 {[%emt 0:04:59]} (24... Qh5 $142 25. Rf1 Ng4) 25. Re1 {[%emt 0:00:39]} Bb5 {[%emt 0:05:20]} 26. e5 {[%emt 0:04:47]} ({Don't play} 26. Rxa7 $6 Bxd3 27. Qxd3 Ng4 $16) 26... Bxd3 $2 {[%emt 0:04:05]} (26... Qg6 27. exd6 (27. cxd6 cxd6 28. Rad1 Bxd3 $18) 27... cxd6) 27. exd6 {[%emt 0:02:49][%mdl 64] Discovered Attack} ({Weaker is} 27. Qxd3 dxe5 28. Rxa7 e4 29. Bxe4 Nxe4 $16) 27... Qb5 {[%emt 0:03:07]} 28. dxc7 {[%emt 0:00:21]} Rbc8 {[%emt 0:00:13]} 29. d6 {[%emt 0:00:25]} a6 {[%emt 0:08:21]} 30. Bd5+ {[%emt 0:04:43]} Nxd5 {[%emt 0:03:32]} 31. Qxd5+ {[%emt 0:00:23]} Rf7 {[%emt 0:00:13]} 32. Re7 {[%emt 0:03:09]} Bc4 {[%emt 0:02:07]} 33. Qe4 {[%emt 0:02:49]} Rxe7 {[%emt 0:01:13]} 34. Qxe7 {[%emt 0:01:22] d7 would kill now.} Re8 {[%emt 0:03:01]} 35. d7 {[%emt 0:01:11] Weighted Error Value: White=0.20 (precise) /Black=0.72} 1-0